fUST/lending_fUST_20241031
["ID","MTS","AMOUNT","RATE_DAILY","PERIOD"]
[341108209,1730386238589,-161.918596,0.0002304,2]
[341108210,1730386238601,-161.918596,0.00023104,2]
[341108211,1730386238611,-419.280087,0.00023491,2]
[341108212,1730386238620,-5357.62041958,0.000236,2]
[341108213,1730386238630,-500.0,0.000237,2]
[341108214,1730386238640,-500.33589352,0.000237,2]
[341108215,1730386238650,-500.0,0.000237,2]
[341108216,1730386238659,-500.0,0.000237,2]
[341108217,1730386238669,-455.75848652,0.000237,2]
[341108218,1730386238678,-500.0,0.00023833,2]
[341108220,1730386238687,-500.0,0.00023833,2]
[341108222,1730386238696,-500.0,0.00023833,2]
[341108223,1730386238706,-500.0,0.00023833,2]
[341108224,1730386238715,-500.0,0.00023999,2]
[341108225,1730386238725,-500.0,0.00023999,2]
[341108226,1730386238734,-500.0,0.00023999,2]
[341108227,1730386238745,-500.0,0.00023999,2]
[341108228,1730386238755,-500.0,0.00023999,2]
[341108229,1730386238766,-341.71227858,0.00023999,2]
[341108252,1730386240255,-158.28772142,0.00023999,2]
[341108253,1730386240264,-500.0,0.00023999,2]
[341108255,1730386240274,-500.0,0.00023999,2]
[341108256,1730386240283,-500.0,0.00023999,2]
[341108259,1730386240293,-500.0,0.00023999,2]
[341108260,1730386240303,-191.08065102,0.00023999,2]
[341108262,1730386240313,-500.0,0.00023999,2]
[341108264,1730386240322,-392.29423655,0.00023999,2]
[341108266,1730386240331,-303.08739101,0.00023999,2]
[341108268,1730386240343,-196.91260899,0.00023999,2]
[341108270,1730386240354,-619.64045938,0.00023999,2]
[341108272,1730386240364,-6306.13417135,0.00024,7]
[341108275,1730386240384,-1393.86582865,0.00024,7]
[341108276,1730386240394,-487.33657801,0.00024,2]
[341108277,1730386240403,-528.0,0.00024006,2]
[341108278,1730386240414,-2395.0,0.00024006,2]
[341108280,1730386240424,-1143.453,0.00024006,2]
[341108282,1730386240433,-500.0,0.000242,2]
[341108284,1730386240443,-500.0,0.000242,2]
[341108286,1730386240452,-420.0,0.00024632,2]
[341108288,1730386240462,-500.0,0.00024658,2]
[341108290,1730386240473,-500.0,0.00024658,2]
[341108292,1730386240483,-500.0,0.00024658,2]
[341108294,1730386240494,-500.0,0.00024658,2]
[341108296,1730386240504,-500.0,0.00024658,2]
[341108298,1730386240514,-500.0,0.00024658,2]
[341108300,1730386240523,-500.0,0.00024658,2]
[341108302,1730386240533,-500.0,0.00024658,2]
[341108304,1730386240543,-500.0,0.00024658,2]
[341108306,1730386240552,-500.0,0.00024658,2]
[341108307,1730386240562,-500.0,0.00024658,2]
[341108308,1730386240571,-324.40093949,0.00024658,2]
[341108309,1730386240580,-500.0,0.00024658,2]
[341108310,1730386240590,-500.0,0.00024658,2]
[341108311,1730386240601,-420.0,0.00024952,2]
[341108312,1730386240612,-176.051,0.0002531,9]
[341108313,1730386240622,-500.0,0.00025358,2]
[341108314,1730386240631,-153.11958292,0.00025486,2]
[341108315,1730386240641,-229.61,0.0002552,2]
[341108316,1730386240650,-5357.62041953,0.00025571,2]
[341108317,1730386240659,-8453.61338108,0.00026369,2]
[341108318,1730386240669,-214.4093461,0.00026574,2]
[341108319,1730386240679,-446.4180304,0.00026576,2]
[341108320,1730386240689,-587.0,0.00026748,2]
[341108321,1730386240699,-8453.61338108,0.00026753,2]
[341108322,1730386240708,-500.0,0.00026848,2]
[341108323,1730386240718,-415.7243248,0.00026848,2]
[341108324,1730386240727,-500.0,0.00026848,2]
[341108325,1730386240737,-358.31417049,0.00026848,2]
[341108326,1730386240747,-184.499314,0.00026921,2]
[341108327,1730386240759,-209.38,0.0002698,3]
[341108328,1730386240770,-628.16,0.0002698,3]
[341108329,1730386240780,-11985.2,0.0002698,10]
[341108330,1730386240789,-14382.23,0.0002699,10]
[341108331,1730386240800,-246.99245416,0.00026999,2]
[341108332,1730386240810,-13377.01861799,0.00027,2]
[341108333,1730386240819,-161.0,0.00027,2]
[341108334,1730386240829,-328.0,0.00027,2]
[341108335,1730386240839,-150.0499999,0.00027,2]
[341108336,1730386240851,-202.0,0.00027,2]
[341108337,1730386240860,-157.0,0.00027,2]
[341108338,1730386240870,-528.0,0.00027006,2]
[341108339,1730386240890,-2395.0,0.00027006,2]
[341108340,1730386240900,-1143.0,0.00027006,2]
[341108341,1730386240910,-500.0,0.00027397,2]
[341108342,1730386240919,-303.71122618,0.00027397,2]
[341108343,1730386240929,-1000.0,0.00027397,60]
[341108344,1730386240938,-587.0,0.00027447,2]
[341108345,1730386240948,-205.7495,0.0002752,2]
[341108346,1730386240957,-5357.62041953,0.00027543,2]
[341108347,1730386240967,-328.0,0.00027671,2]
[341108348,1730386240980,-157.0,0.00027671,2]
[341108349,1730386240991,-328.0,0.00027945,2]
[341108350,1730386241000,-1162.96146728,0.0002799,7]
[341108351,1730386241011,-1321.80634628,0.0002799,2]
[341108352,1730386241021,-4919.95155439,0.00028,2]
[341108405,1730386243363,-300.803,0.00028,2]
[341108407,1730386243376,-1017.69598156,0.00028,2]
[341108409,1730386243386,-500.0,0.00028,10]
[341108411,1730386243396,-500.0,0.00028098,2]
[341108413,1730386243405,-328.0,0.00028219,2]
[341108415,1730386243415,-480.47044286,0.00028221,2]
[341108417,1730386243424,-418.76,0.0002835,3]
[341108419,1730386243434,-328.0,0.00028493,2]
[341108421,1730386243444,-161.0,0.00028767,2]
[341108423,1730386243453,-328.0,0.00028767,2]
[341108425,1730386243463,-157.0,0.00028767,2]
[341108427,1730386243472,-420.87161477,0.00028795,2]
[341108704,1730386246132,-9.46479733,0.00028795,2]
[341108706,1730386246142,-1000.0,0.000288,3]
[341108709,1730386246151,-999.999999,0.00028852,2]
[341108710,1730386246161,-1526.53520367,0.00028886,30]
[341108719,1730386246235,-996.46479633,0.00028886,30]
[341108720,1730386246244,-2523.0,0.00028886,30]
[341108721,1730386246253,-2523.0,0.00028886,30]
[341108722,1730386246262,-2523.0,0.00028886,30]
[341108723,1730386246272,-2523.0,0.00028886,30]
[341108724,1730386246281,-2523.0,0.00028886,30]
[341108725,1730386246291,-2523.0,0.00028886,30]
[341108726,1730386246300,-2523.0,0.00028886,30]
[341108727,1730386246308,-2523.0,0.00028886,30]
[341108728,1730386246319,-2523.0,0.00028886,30]
[341108730,1730386246328,-2523.0,0.00028886,30]
[341108732,1730386246338,-2523.0,0.00028886,30]
[341108734,1730386246347,-2523.0,0.00028886,30]
[341108736,1730386246357,-2523.0,0.00028886,30]
[341108738,1730386246366,-2523.0,0.00028886,30]
[341108740,1730386246376,-2523.0,0.00028886,30]
[341108742,1730386246386,-2523.0,0.00028886,30]
[341108744,1730386246395,-2523.0,0.00028886,30]
[341108746,1730386246405,-2523.0,0.00028886,30]
[341108748,1730386246415,-2523.0,0.00028886,30]
[341108750,1730386246425,-1000.0,0.00029,30]
[341108752,1730386246435,-858.31654694,0.00029,2]
[341108754,1730386246444,-823.0,0.00029046,2]
[341108756,1730386246454,-200.0,0.000291,120]
[341108758,1730386246463,-262.63039691,0.00029179,5]
[341108760,1730386246473,-1000.0,0.00029313,2]
[341108762,1730386246483,-1000.0,0.00029313,5]
[341108764,1730386246493,-1000.0,0.00029313,5]
[341108766,1730386246503,-1000.0,0.00029313,5]
[341108768,1730386246514,-5357.62041953,0.00029514,2]
[341108770,1730386246523,-465.77352214,0.00029632,2]
[341108772,1730386246533,-500.0,0.00029679,5]
[341108774,1730386246542,-512.28540659,0.00029679,5]
[341108776,1730386246551,-29799.68359398,0.00029835,2]
[341108778,1730386246561,-153.0,0.0002984,2]
[341108780,1730386246570,-153.0,0.0002984,2]
[341108782,1730386246580,-153.0,0.0002984,2]
[341108784,1730386246589,-302.9343744,0.0002984,2]
[341108786,1730386246598,-1000.0,0.000299,2]
[341108788,1730386246610,-500.0,0.00029973,5]
[341108790,1730386246619,-500.0,0.00029973,5]
[341108792,1730386246629,-500.0,0.00029973,5]
[341108794,1730386246640,-500.0,0.00029973,5]
[341108797,1730386246652,-500.0,0.00029973,5]
[341108799,1730386246663,-500.0,0.00029973,5]
[341108801,1730386246672,-500.0,0.00029973,5]
[341108803,1730386246682,-500.0,0.00029973,5]
[341108805,1730386246691,-505.42606809,0.00029973,5]
[341108807,1730386246700,-500.7729514,0.00029973,5]
[341108809,1730386246709,-500.0,0.00029973,5]
[341108811,1730386246719,-500.0,0.00029973,5]
[341108813,1730386246729,-500.0,0.00029973,5]
[341108815,1730386246739,-500.0,0.00029973,5]
[341108817,1730386246748,-500.0,0.00029973,5]
[341108819,1730386246762,-500.0,0.00029973,5]
[341108821,1730386246771,-523.25,0.00029999,2]
[341108824,1730386246782,-523.25,0.00029999,2]
[341108826,1730386246792,-523.25,0.00029999,2]
[341108828,1730386246804,-523.25,0.00029999,2]
[341108830,1730386246815,-523.25,0.00029999,2]
[341108832,1730386246824,-523.25,0.00029999,2]
[341108834,1730386246835,-523.25,0.00029999,2]
[341108836,1730386246845,-523.25,0.00029999,2]
[341108838,1730386246857,-523.25,0.00029999,2]
[341108840,1730386246866,-523.25,0.00029999,2]
[341108842,1730386246876,-160.0,0.00029999,10]
[341108844,1730386246886,-23729.11602759,0.0003,2]
[341108847,1730386246896,-554.48155346,0.0003,2]
[341108849,1730386246907,-4068.95747045,0.0003,5]
[341108851,1730386246916,-949.02089943,0.0003,120]
[341108853,1730386246925,-2021.04975032,0.0003,30]
[341108855,1730386246935,-643.23,0.0003,60]
[341108857,1730386246944,-200.0,0.0003,7]
[341108859,1730386246954,-200.0,0.0003,14]
[341108861,1730386246963,-550.13796744,0.0003,2]
[341108863,1730386246973,-425160.7997142,0.0003,7]
[341108865,1730386246982,-160.0,0.0003,2]
[341108867,1730386246991,-450.0,0.0003,30]
[341108869,1730386247001,-2468.41680703,0.0003,5]
[341108871,1730386247010,-878.93559615,0.0003,15]
[341108873,1730386247019,-20959.32076719,0.0003,4]
[341108875,1730386247028,-1500.0,0.0003,2]
[341108877,1730386247038,-60242.80906029,0.0003,2]
[341108879,1730386247048,-6749.65553513,0.0003,2]
[341108888,1730386247057,-2216.89,0.0003,30]
[341108890,1730386247143,-41982.84,0.0003,14]
[341108892,1730386247153,-1994.99,0.0003,30]
[341108894,1730386247162,-406.93,0.0003,14]
[341108896,1730386247171,-301.19,0.0003,14]
[341108899,1730386247181,-151.0,0.0003,120]
[341108901,1730386247190,-151.0,0.0003,7]
[341108903,1730386247199,-234.9265,0.0003,2]
[341108905,1730386247208,-151.0,0.0003,7]
[341108907,1730386247217,-151.0,0.0003,7]
[341108909,1730386247227,-151.0,0.0003,7]
[341108911,1730386247238,-151.0,0.0003,7]
[341108913,1730386247247,-151.0,0.0003,7]
[341108915,1730386247258,-232.0,0.0003,2]
[341108917,1730386247269,-2395.0,0.00030006,2]
[341108919,1730386247278,-1143.0,0.00030006,2]
[341108921,1730386247288,-4000.0,0.00030036,2]
[341108923,1730386247298,-160.0,0.00030135,10]
[341108925,1730386247307,-558.06132546,0.00030136,5]
[341108927,1730386247316,-523.11740377,0.00030136,5]
[341108928,1730386247326,-500.0,0.00030136,5]
[341108931,1730386247336,-166.7048841,0.00030136,5]
[341108932,1730386247346,-500.0,0.00030136,5]
[341108935,1730386247358,-500.0,0.00030136,5]
[341108937,1730386247368,-500.0,0.00030136,5]
[341108939,1730386247377,-450.82704423,0.00030136,5]
[341108941,1730386247387,-503.86920275,0.00030136,5]
[341108943,1730386247395,-500.0,0.00030136,5]
[341108945,1730386247405,-500.0,0.00030136,5]
[341108946,1730386247414,-500.0,0.00030136,5]
[341108948,1730386247423,-500.0,0.00030136,5]
[341108951,1730386247433,-502.21779567,0.00030136,5]
[341108953,1730386247443,-500.0,0.00030136,5]
[341108955,1730386247452,-503.94556932,0.00030136,5]
[341108956,1730386247462,-509.49678911,0.00030136,5]
[341108958,1730386247471,-500.0,0.00030136,5]
[341108960,1730386247481,-521.6183897,0.00030136,5]
[341108962,1730386247491,-500.0,0.00030136,5]
[341108964,1730386247500,-500.0,0.00030136,5]
[341108967,1730386247509,-500.0,0.00030136,5]
[341108969,1730386247519,-500.0,0.00030136,5]
[341108971,1730386247528,-500.0,0.00030136,5]
[341108973,1730386247538,-500.0,0.00030136,5]
[341108975,1730386247549,-500.0,0.00030136,5]
[341108977,1730386247559,-500.0,0.00030136,5]
[341108979,1730386247572,-500.0,0.00030136,5]
[341108981,1730386247581,-500.0,0.00030136,5]
[341108983,1730386247590,-500.0,0.00030136,2]
[341108985,1730386247599,-500.0,0.00030136,5]
[341108987,1730386247611,-500.0,0.00030136,2]
[341108989,1730386247620,-500.0,0.00030136,2]
[341108991,1730386247630,-500.0,0.00030136,2]
[341108993,1730386247639,-500.0,0.00030136,2]
[341108995,1730386247648,-500.0,0.00030136,2]
[341108997,1730386247658,-500.0,0.00030136,2]
[341108999,1730386247667,-450.95459046,0.00030136,2]
[341109001,1730386247677,-500.0,0.00030136,5]
[341109003,1730386247686,-500.0,0.00030136,5]
[341109005,1730386247695,-500.0,0.00030136,5]
[341109007,1730386247704,-500.0,0.00030136,5]
[341109009,1730386247714,-500.0,0.00030136,5]
[341109011,1730386247723,-500.0,0.00030136,5]
[341109013,1730386247732,-389.84250407,0.00030136,5]
[341109015,1730386247741,-500.0,0.00030136,5]
[341109017,1730386247752,-500.0,0.00030136,5]
[341109019,1730386247764,-500.0,0.00030136,5]
[341109021,1730386247772,-502.40125035,0.00030136,5]
[341109023,1730386247782,-500.0,0.00030136,5]
[341109025,1730386247792,-500.0,0.00030136,5]
[341109027,1730386247801,-1794.03,0.00030136,2]
[341109029,1730386247811,-1794.03,0.00030136,2]
[341109031,1730386247821,-1794.03,0.00030136,2]
[341109033,1730386247830,-1794.03,0.00030136,2]
[341109035,1730386247841,-1794.03,0.00030136,2]
[341109037,1730386247850,-1794.03,0.00030136,2]
[341109039,1730386247862,-1794.03,0.00030136,2]
[341109041,1730386247871,-1794.03,0.00030136,2]
[341109043,1730386247881,-1794.03,0.00030136,2]
[341109046,1730386247891,-1794.03,0.00030136,2]
[341109048,1730386247900,-1794.03,0.00030136,2]
[341109050,1730386247910,-1794.03,0.00030136,2]
[341109051,1730386247919,-1794.03,0.00030136,2]
[341109054,1730386247929,-1794.03,0.00030136,2]
[341109055,1730386247938,-500.0,0.00030136,5]
[341109057,1730386247947,-1794.03,0.00030136,2]
[341109059,1730386247957,-1794.03,0.00030136,2]
[341109061,1730386247966,-1794.03,0.00030136,2]
[341109063,1730386247976,-1794.03,0.00030136,2]
[341109064,1730386247985,-1794.03,0.00030136,2]
[341109065,1730386247995,-1794.03,0.00030136,2]
[341109066,1730386248004,-1794.03,0.00030136,2]
[341109067,1730386248015,-1794.03,0.00030136,2]
[341109068,1730386248025,-1794.03,0.00030136,2]
[341109069,1730386248035,-1794.10044774,0.00030136,2]
[341109070,1730386248047,-500.0,0.00030136,5]
[341109072,1730386248056,-500.0,0.00030136,5]
[341109074,1730386248066,-605.54350471,0.00030136,5]
[341109076,1730386248075,-500.0,0.00030136,5]
[341109078,1730386248084,-500.0,0.00030136,5]
[341109080,1730386248093,-504.27196743,0.00030136,5]
[341109082,1730386248103,-500.0,0.00030136,5]
[341109084,1730386248115,-501.90034348,0.00030136,5]
[341109086,1730386248124,-500.0,0.00030136,5]
[341109088,1730386248134,-500.0,0.00030136,5]
[341109090,1730386248143,-500.0,0.00030136,5]
[341109092,1730386248153,-501.35287033,0.00030136,5]
[341109094,1730386248163,-500.0,0.00030136,5]
[341109096,1730386248172,-398.76581271,0.00030136,5]
[341109098,1730386248182,-500.0,0.00030136,5]
[341109100,1730386248191,-507.40151916,0.00030136,5]
[341109102,1730386248201,-508.75666676,0.00030136,5]
[341109104,1730386248210,-502.1627645,0.00030136,5]
[341109106,1730386248220,-500.0,0.00030136,5]
[341109108,1730386248229,-500.0,0.00030136,5]
[341109110,1730386248240,-502.65461989,0.00030136,5]
[341109112,1730386248250,-507.73070471,0.00030136,5]
[341109114,1730386248260,-473.9091764,0.00030136,5]
[341109116,1730386248269,-500.0,0.00030136,5]
[341109118,1730386248278,-500.0,0.00030136,5]
[341109120,1730386248287,-503.93843072,0.00030136,5]
[341109122,1730386248298,-504.44224002,0.00030136,5]
[341109124,1730386248308,-505.52088482,0.00030136,5]
[341109126,1730386248317,-501.82104815,0.00030136,5]
[341109128,1730386248326,-500.0,0.00030136,5]
[341109130,1730386248336,-500.0,0.00030136,5]
[341109132,1730386248346,-180.209695,0.00030136,5]
[341109134,1730386248357,-508.82288876,0.00030136,5]
[341109136,1730386248366,-500.0,0.00030136,5]
[341109138,1730386248377,-501.53152678,0.00030136,5]
[341109140,1730386248388,-500.0,0.00030136,5]
[341109142,1730386248399,-500.0,0.00030136,5]
[341109145,1730386248410,-503.07145176,0.00030136,5]
[341109147,1730386248419,-502.06194082,0.00030136,5]
[341109149,1730386248429,-500.0,0.00030136,5]
[341109151,1730386248439,-502.98397746,0.00030136,5]
[341109153,1730386248448,-500.0,0.00030136,5]
[341109155,1730386248458,-500.0,0.00030136,5]
[341109157,1730386248467,-211.16550153,0.00030136,5]
[341109159,1730386248477,-505.42379159,0.00030136,5]
[341109161,1730386248487,-503.4381573,0.00030136,5]
[341109163,1730386248497,-500.0,0.00030136,5]
[341109165,1730386248507,-151.0,0.00030136,7]
[341109167,1730386248517,-259.518319,0.00030136,7]
[341109176,1730386248593,-156.25664864,0.00030136,5]
[341109178,1730386248604,-500.0,0.00030136,5]
[341109180,1730386248615,-502.72808741,0.00030136,5]
[341109182,1730386248624,-508.08642587,0.00030136,5]
[341109185,1730386248633,-502.84119003,0.00030136,5]
[341109187,1730386248644,-413.59682162,0.00030136,5]
[341109189,1730386248653,-500.0,0.00030136,5]
[341109191,1730386248662,-505.6131961,0.00030136,5]
[341109193,1730386248672,-502.04497251,0.00030136,5]
[341109195,1730386248682,-515.59069995,0.00030136,5]
[341109197,1730386248693,-500.0,0.00030136,5]
[341109199,1730386248703,-504.2208762,0.00030136,5]
[341109201,1730386248712,-502.92034233,0.00030136,5]
[341109203,1730386248722,-294.81650466,0.00030136,5]
[341109205,1730386248736,-500.0,0.00030136,5]
[341109207,1730386248745,-500.0,0.00030136,5]
[341109209,1730386248757,-505.91918646,0.00030136,5]
[341109211,1730386248768,-501.86172139,0.00030136,5]
[341109213,1730386248778,-500.0,0.00030136,5]
[341109215,1730386248788,-500.0,0.00030136,5]
[341109217,1730386248798,-506.14842396,0.00030136,5]
[341109219,1730386248808,-502.21401065,0.00030136,5]
[341109221,1730386248818,-501.68668571,0.00030136,5]
[341109223,1730386248827,-501.56857057,0.00030136,5]
[341109225,1730386248838,-500.0,0.00030136,5]
[341109227,1730386248848,-502.00325745,0.00030136,5]
[341109229,1730386248860,-500.0,0.00030136,5]
[341109231,1730386248871,-500.0,0.00030136,5]
[341109233,1730386248880,-500.0,0.00030136,5]
[341109235,1730386248889,-284.15130077,0.00030136,5]
[341109237,1730386248900,-501.36254274,0.00030136,5]
[341109240,1730386248911,-500.0,0.00030136,5]
[341109242,1730386248920,-502.6458022,0.00030136,5]
[341109244,1730386248931,-502.83970058,0.00030136,5]
[341109246,1730386248941,-551.50414446,0.00030136,5]
[341109248,1730386248951,-506.80640457,0.00030136,5]
[341109250,1730386248960,-502.53993674,0.00030136,5]
[341109252,1730386248970,-502.09292435,0.00030136,5]
[341109254,1730386248979,-500.74103745,0.00030136,5]
[341109256,1730386248989,-502.74527115,0.00030136,5]
[341109258,1730386248998,-558.37326568,0.00030136,5]
[341109260,1730386249008,-505.03809372,0.00030136,5]
[341109262,1730386249018,-500.0,0.00030136,5]
[341109264,1730386249028,-500.7826596,0.00030136,5]
[341109266,1730386249038,-500.0,0.00030136,5]
[341109268,1730386249048,-500.0,0.00030136,5]
[341109270,1730386249059,-500.0,0.00030136,5]
[341109272,1730386249069,-500.0,0.00030136,5]
[341109275,1730386249081,-500.0,0.00030136,5]
[341109277,1730386249090,-500.0,0.00030136,5]
[341109279,1730386249100,-509.254381,0.00030136,5]
[341109281,1730386249112,-508.39582966,0.00030136,5]
[341109283,1730386249121,-501.92568554,0.00030136,5]
[341109284,1730386249130,-500.0,0.00030136,5]
[341109286,1730386249139,-502.89376383,0.00030136,5]
[341109289,1730386249149,-500.0,0.00030136,5]
[341109291,1730386249159,-508.91683963,0.00030136,5]
[341109293,1730386249168,-502.14947389,0.00030136,5]
[341109295,1730386249178,-509.71927564,0.00030136,5]
[341109297,1730386249187,-500.0,0.00030136,5]
[341109299,1730386249196,-502.78321044,0.00030136,5]
[341109301,1730386249205,-500.0,0.00030136,5]
[341109303,1730386249214,-500.83020901,0.00030136,5]
[341109305,1730386249224,-504.78816683,0.00030136,5]
[341109307,1730386249233,-500.0,0.00030136,5]
[341109309,1730386249244,-500.0,0.00030136,5]
[341109312,1730386249261,-503.39904094,0.00030136,5]
[341109314,1730386249276,-500.0,0.00030136,5]
[341109317,1730386249289,-510.806401,0.00030136,5]
[341109319,1730386249304,-505.53751388,0.00030136,5]
[341109322,1730386249319,-500.0,0.00030136,5]
[341109325,1730386249336,-500.0,0.00030136,5]
[341109327,1730386249351,-500.0,0.00030136,5]
[341109330,1730386249373,-500.0,0.00030136,5]
[341109333,1730386249387,-1000.0,0.00030136,30]
[341109335,1730386249401,-500.0,0.00030136,5]
[341109338,1730386249416,-500.0,0.00030136,5]
[341109340,1730386249431,-500.0,0.00030136,5]
[341109343,1730386249444,-500.0,0.00030136,5]
[341109345,1730386249456,-501.12959435,0.00030136,5]
[341109347,1730386249469,-500.0,0.00030136,5]
[341109350,1730386249485,-500.64307975,0.00030136,5]
[341109353,1730386249502,-500.0,0.00030136,5]
[341109355,1730386249518,-503.85401501,0.00030136,5]
[341109358,1730386249535,-500.0,0.00030136,5]
[341109360,1730386249549,-500.0,0.00030136,5]
[341109362,1730386249560,-500.0,0.00030136,5]
[341109365,1730386249573,-500.0,0.00030136,5]
[341109367,1730386249588,-506.15158132,0.00030136,5]
[341109369,1730386249603,-509.64555733,0.00030136,5]
[341109370,1730386249622,-203.3351394,0.00030136,5]
[341109371,1730386249636,-187.71701861,0.00030136,5]
[341109372,1730386249650,-500.0,0.00030136,5]
[341109373,1730386249663,-556.46551516,0.00030136,5]
[341109374,1730386249674,-500.0,0.00030136,5]
[341109376,1730386249687,-500.0,0.00030136,5]
[341109378,1730386249700,-500.0,0.00030136,5]
[341109379,1730386249713,-500.86978573,0.00030136,5]
[341109380,1730386249725,-500.0,0.00030136,5]
[341109381,1730386249738,-500.0,0.00030136,5]
[341109382,1730386249750,-500.0,0.00030136,5]
[341109383,1730386249767,-500.0,0.00030136,5]
[341109384,1730386249781,-504.01934775,0.00030136,5]
[341109385,1730386249795,-500.0,0.00030136,5]
[341109386,1730386249807,-500.0,0.00030136,5]
[341109387,1730386249820,-500.0,0.00030136,5]
[341109388,1730386249833,-510.03052161,0.00030136,5]
[341109389,1730386249846,-500.0,0.00030136,5]
[341109390,1730386249860,-500.0,0.00030136,5]
[341109392,1730386249873,-500.0,0.00030136,5]
[341109395,1730386249885,-502.89961759,0.00030136,5]
[341109397,1730386249898,-411.21858619,0.00030136,5]
[341109400,1730386249911,-306.94113792,0.00030136,5]
[341109402,1730386249923,-500.0,0.00030136,5]
[341109404,1730386249937,-501.92803009,0.00030136,5]
[341109405,1730386249948,-505.04010581,0.00030136,5]
[341109406,1730386249961,-500.0,0.00030136,5]
[341109409,1730386249973,-500.0,0.00030136,5]
[341109411,1730386249985,-500.0,0.00030136,5]
[341109413,1730386249998,-500.0,0.00030136,5]
[341109415,1730386250010,-500.0,0.00030136,5]
[341109418,1730386250023,-546.4964895,0.00030136,5]
[341109420,1730386250035,-500.0,0.00030136,5]
[341109422,1730386250049,-500.0,0.00030136,5]
[341109425,1730386250062,-500.0,0.00030136,5]
[341109427,1730386250075,-500.0,0.00030136,5]
[341109430,1730386250090,-504.08581021,0.00030136,5]
[341109432,1730386250101,-569.90266281,0.00030136,5]
[341109434,1730386250113,-500.0,0.00030136,5]
[341109436,1730386250122,-507.65412788,0.00030136,5]
[341109438,1730386250132,-500.0,0.00030136,5]
[341109452,1730386250243,-500.0,0.00030136,5]
[341109454,1730386250273,-512.41140675,0.00030136,5]
[341109457,1730386250289,-500.0,0.00030136,5]
[341109459,1730386250299,-502.86083641,0.00030136,5]
[341109461,1730386250308,-500.0,0.00030136,5]
[341109463,1730386250318,-507.32381008,0.00030136,5]
[341109465,1730386250328,-506.67290337,0.00030136,5]
[341109467,1730386250337,-404.54251095,0.00030136,5]
[341109469,1730386250347,-523.93278301,0.00030136,5]
[341109471,1730386250359,-500.0,0.00030136,5]
[341109473,1730386250369,-500.0,0.00030136,5]
[341109475,1730386250380,-500.0,0.00030136,2]
[341109477,1730386250390,-502.19110007,0.00030136,5]
[341109479,1730386250401,-500.62333881,0.00030136,5]
[341109481,1730386250411,-500.0,0.00030136,5]
[341109483,1730386250421,-509.82981597,0.00030136,5]
[341109485,1730386250430,-500.0,0.00030136,5]
[341109487,1730386250440,-500.0,0.00030136,5]
[341109489,1730386250450,-500.0,0.00030136,5]
[341109491,1730386250460,-500.0,0.00030136,5]
[341109493,1730386250470,-502.41021242,0.00030136,5]
[341109495,1730386250480,-500.0,0.00030136,5]
[341109497,1730386250489,-506.86031548,0.00030136,5]
[341109499,1730386250500,-507.80005217,0.00030136,5]
[341109501,1730386250510,-500.0,0.00030136,5]
[341109503,1730386250520,-500.0,0.00030136,5]
[341109505,1730386250530,-500.0,0.00030136,5]
[341109507,1730386250540,-505.73837133,0.00030136,5]
[341109509,1730386250550,-316.43125611,0.00030136,5]
[341109511,1730386250559,-502.44592612,0.00030136,5]
[341109513,1730386250569,-503.10534214,0.00030136,5]